Cogmind - Beta 17.1 @@@ ROGUE MODE // 2026.09.14 @ 18:16:58 Player: mmmmcheese Result: Destroyed by H-77 Assassin with Coil Gun Performance ------------- Evolutions (6) 3000 Regions Visited (19) 3800 Robots Destroyed (232) 1160 Value Destroyed (10243) 10243 Prototype IDs (59) 1180 Alien Tech Used (2) 400 Bonus (1949) 1949 TOTAL SCORE: 21732 Bonus ------- High Alert Combat Kills 168 Follower Combat Kills 216 Entered Garrisons 200 Aligned with FarCom 300 Acquired ECA 300 Met Zhirov 300 MAIN.C Attacked Proxy Base 500 Friendly Fire -35 Cogmind --------- Core Integrity 0/1150 Matter 272/300 Energy 99/100 System Corruption 25% Temperature Cool (0) Movement Core (50) Location -4/Factory Parts ------- > --- POWER (2) -------- (None) > --- PROPULSION (6) --- (None) > --- UTILITY (8) ------ Experimental Optical Array Advanced Target Analyzer Makeshift Hacking Suite Advanced Hacking Suite > --- WEAPON (3) ------- (None) > --- INVENTORY (5) ---- Improved Energy Well (400) Improved Phase Shifter Advanced Force Field Improved Trap Extractor (6/6 Dirty Bomb) High-powered Shotgun Peak State ------------ > --- POWER ------------ Fusion Reactor Reinforced Quantum Reactor > --- PROPULSION ------- Improved Heavy Treads Advanced VSS Leg Advanced Myomer Leg Advanced Myomer Leg Advanced Myomer Leg > --- UTILITY ---------- High-capacity Storage Unit Experimental Optical Array Advanced Targeting Computer Advanced Target Analyzer Advanced Reaction Control System Makeshift Hacking Suite Advanced Hacking Suite Improved System Shield > --- WEAPON ----------- Heavy Phase Cannon Heavy Phase Cannon Micro-nuke Launcher > --- INVENTORY -------- Advanced Cooling System Advanced Cooling System Improved Energy Well Transmission Jammer Experimental Core Shielding Improved Heavy Armor Plating Improved Heavy Armor Plating Advanced Force Field Improved Trap Extractor Advanced Trap Extractor Thief Drone Bay Transdimensional Reconstructor Heavy Phase Cannon Heavy Phase Cannon Guided EMP Blaster Improved Plasma Cutter Powered Hammer [Rating: 133] Favorites ----------- Power Enhanced Nuclear Core Engine Light Angular Momentum Engine Power Core Enhanced Nuclear Core Reactor Fusion Reactor Propulsion Carbon-fiber Leg Treads Armored Treads Leg Carbon-fiber Leg Wheel Wheel Flight Unit Field Propulsion Array Utility Advanced Targeting Computer Device Improved Heat Sink Storage Large Storage Unit Processor Advanced Targeting Computer Hackware Hacking Suite Protection Reactive Plating Weapon Advanced Beam Cannon Energy Gun Gatling Laser Energy Cannon Advanced Beam Cannon Ballistic Gun Light Assault Rifle Launcher Micro-nuke Launcher Special Weapon Advanced Remote Datajack Impact Weapon Powered Hammer Build | -11 -10 -10 -9 -9 -9 -8 -8 -8 -7 -7 -7 -5 -5 -5 -5 -4 -4 -4 -4 ------- Run | Yrd Mat Min Mat Min Exi Min Mat Gar Fac Sto Rec Fac Upp Upp Zhi Pro Fac Was Fac Slots Evolved 12 | . . . 2 . . . 2 . 2 . . 4 . . . . 2 . . Power 1 | . . . . . . . . . . . . . . . . . 1 . . Propulsion 4 | . . . 1 . . . . . 1 . . 2 . . . . . . . Utility 6 | . . . 1 . . . 2 . 1 . . 2 . . . . . . . Weapon 1 | . . . . . . . . . . . . . . . . . 1 . . Parts Attached 218 | 6 11 9 19 4 4 8 12 7 7 18 . 15 14 . 6 22 16 1 39 Power 29 | 1 2 1 3 . . 1 1 2 1 2 . 2 2 . 1 1 . 1 8 Engine 16 | 1 1 1 3 . . 1 1 1 . . . 2 1 . . . . . 4 Core 7 | . 1 . . . . . . 1 1 2 . . 1 . . 1 . . . Reactor 6 | . . . . . . . . . . . . . . . 1 . . 1 4 Propulsion 60 | 2 3 2 6 2 . 2 2 . 1 4 . 4 5 . 2 6 2 . 17 Treads 12 | . 2 1 2 . . . . . . . . . 4 . . . 1 . 2 Leg 37 | 2 1 1 4 2 . 2 2 . 1 4 . 4 1 . 2 6 1 . 4 Wheel 8 | . . . . . . . . . . . . . . . . . . . 8 Hover . | . . . . . . . . . . . . . . . . . . . . Flight 3 | . . . . . . . . . . . . . . . . . . . 3 Utility 68 | 1 3 2 4 1 1 3 4 4 3 5 . 8 4 . 3 10 9 . 3 Device 29 | . 1 1 1 1 . 2 . 1 1 2 . 2 4 . . 5 7 . 1 Storage 5 | 1 1 . . . . . . . . . . 2 . . 1 . . . . Processor 13 | . 1 . 2 . . 1 3 1 1 . . 2 . . . 1 1 . . Hackware 8 | . . 1 . . . . . . 1 . . 1 . . 1 3 1 . . Protection 13 | . . . 1 . 1 . 1 2 . 3 . 1 . . 1 1 . . 2 Artifact . | . . . . . . . . . . . . . . . . . . . . Weapon 61 | 2 3 4 6 1 3 2 5 1 2 7 . 1 3 . . 5 5 . 11 Energy Gun 18 | . . . 1 . . . 2 1 . 5 . 1 2 . . 3 . . 3 Energy Cannon 14 | . . . 2 1 1 . 3 . 2 1 . . . . . . 3 . 1 Ballistic Gun 19 | 2 2 4 2 . . 2 . . . . . . 1 . . . . . 6 Ballistic Cannon . | . . . . . . . . . . . . . . . . . . . . Launcher 5 | . . . . . 1 . . . . 1 . . . . . 1 2 . . Special Weapon 1 | . . . . . . . . . . . . . . . . 1 . . . Impact Weapon 4 | . 1 . 1 . 1 . . . . . . . . . . . . . 1 Slashing Weapon . | . . . . . . . . . . . . . . . . . . . . Piercing Weapon . | . . . . . . . . . . . . . . . . . . . . Special Melee Weapon . | . . . . . . . . . . . . . . . . . . . . Unidentified Prototypes 16 | . . . 2 1 . . 2 . . 4 . 1 . . 5 . . . 1 Corrupted Parts 1 | . . . . . . . . . . . . . . . . . 1 . . System Corruption 3 | . . . . . . . . . . . . . . . . . 3 . . Parts Lost 101 | . . 7 3 . 2 3 2 2 1 7 . 4 7 3 . 14 . 2 44 Power 14 | . . 1 . . . . . 1 . 1 . . . 1 . 1 . 1 8 Propulsion 38 | . . 2 2 . . 3 . . . 2 . 2 3 1 . 6 . . 17 Utility 24 | . . 1 . . 1 . 1 1 . 4 . 2 2 1 . 2 . . 9 Weapon 25 | . . 3 1 . 1 . 1 . 1 . . . 2 . . 5 . 1 10 Highest Loss Streak 17 | . . 3 2 . 2 4 1 1 1 5 . 2 3 1 . 7 . 2 17 To Critical Strikes 2 | . . . . . . . . . . . . . . . . . . 1 1 Average Backups 13 | 1 8 7 11 14 13 12 14 14 14 13 14 13 14 13 15 17 17 17 15 Power . | . . . . . 1 1 1 . 1 1 2 1 1 . . . . . . Propulsion 1 | . 2 . 1 1 2 2 2 3 2 1 2 . . 1 1 1 . . . Utility 6 | . 3 4 5 7 6 7 8 7 6 5 5 6 5 7 7 9 11 11 8 Weapon 3 | . 2 2 3 3 2 1 2 3 4 5 5 5 5 3 3 1 2 4 3 Tool/Special . | . . . . . . . . . . . . . . . . . . . . Unused Backups 39 | . 4 . 2 1 4 1 5 2 . 5 . . . 1 . 4 2 . 8 Power 9 | . . . . . 3 1 . 1 . 2 . . . . . . . . 2 Propulsion 1 | . . . . . . . . . . . . . . . . 1 . . . Utility 19 | . 3 . 2 1 . . 5 1 . 1 . . . . . 1 2 . 3 Weapon 8 | . 1 . . . . . . . . 2 . . . 1 . 2 . . 2 Tool/Special 2 | . . . . . 1 . . . . . . . . . . . . . 1 Average Slot Usage (%) 90 | . 99 96 96 100 90 82 89 89 90 90 92 91 87 91 92 88 87 84 78 Engine 5 | . 14 3 11 11 11 11 9 8 . . . 4 4 2 . . . . 3 Core 2 | . . 10 . . . . . . 7 7 7 . . 2 5 4 . . . Treads 3 | . 7 7 2 . . . . . . . . . 8 23 17 3 4 5 2 Leg 21 | . 20 19 28 33 33 20 18 18 22 22 23 27 18 11 13 26 22 18 12 Device 10 | . 8 9 8 11 4 10 8 9 8 13 15 13 14 17 17 7 6 5 4 Storage 7 | . 14 4 10 11 11 11 9 9 7 7 7 5 5 5 5 5 5 5 4 Processor 12 | . 5 10 8 11 8 7 24 17 17 11 7 16 17 11 11 11 13 15 13 Hackware 5 | . . 2 2 . . . . . 2 . . 3 5 5 7 17 15 15 13 Protection 2 | . . . 2 . 6 . 1 9 7 10 15 4 . . . . . . 1 Energy Gun 4 | . . . 2 . . . . 6 3 12 15 11 7 3 5 4 2 . 1 Energy Cannon 5 | . . . 9 22 10 11 14 11 10 1 . . . . . . 4 8 5 Ballistic Gun 5 | . 27 27 10 . . 10 2 . . . . . 1 5 5 . . . 4 Peak Build Rating 133 | 6 9 13 24 29 25 32 41 42 48 55 49 63 77 75 82 109 124 133 129 Average Rating 51 | 4 7 10 17 23 23 29 39 41 46 50 49 59 63 65 71 88 118 118 94 On Entrance 47 | . 6 9 11 23 25 15 32 41 42 47 49 49 63 75 64 82 101 124 96 Avg Prop Armor Cover (%) 11 | . . . 9 . . . . . . . . 13 7 7 10 20 13 15 13 Naked Turns . | . . . . . . . . . . . . . . . . . . . . Heaviest Build 116 | 12 27 27 36 37 42 39 47 47 47 54 47 48 67 62 61 76 86 116 101 Greatest Support 168 | 20 40 40 39 44 39 45 45 45 55 63 58 89 95 95 75 168 163 108 123 Greatest Overweight (x) 19 | . . . 1 . 1 1 1 1 . 1 . . 1 . 2 19 . 1 7 Average Overweight (x) . | . . . . . . . . . . . . . . . . . . . . Largest Inventory Capacity 20 | 8 15 15 15 15 15 15 15 15 15 15 15 20 20 20 20 20 20 20 20 Average Capacity 16 | 6 9 8 14 15 15 15 15 15 15 15 15 15 19 20 20 20 20 20 19 Most Carried 20 | 3 15 15 15 15 15 15 15 15 15 15 15 15 18 18 20 20 20 20 20 Average Carried 14 | 1 8 7 11 14 14 12 14 14 14 14 15 14 15 15 17 18 19 20 18 Final Capacity 20 | 8 15 5 15 15 15 15 15 15 15 15 15 15 20 20 20 20 20 20 5 Final Carried 20 | 3 15 5 15 15 13 15 15 15 15 15 15 15 18 15 20 18 20 20 5 Class Distribution -------------------- 39% | Mutant 25% | Scavenger-Mutant 18% | Trapper-Mutant 6% | Trapper-Gunner 4% | Commander-Mutant 4% | Hacker-Mutant Dominant Class ---------------- Mutant | -10/Materials Scavenger-Mutant | -10/Mines Mutant | -9/Materials Mutant | -9/Mines Mutant | -9/Exiles Scavenger-Mutant | -8/Mines Mutant | -8/Materials Mutant | -8/Garrison Scavenger-Mutant | -7/Factory Mutant | -7/Storage Commander-Mutant | -7/Recycling Mutant | -5/Factory Scavenger-Mutant | -5/Upper Caves Trapper-Mutant | -5/Upper Caves Trapper-Mutant | -5/Zhirov Trapper-Mutant | -4/Proximity Caves Trapper-Gunner | -4/Factory Trapper-Gunner | -4/Waste Trapper-Gunner | -4/Factory Resources | -11 -10 -10 -9 -9 -9 -8 -8 -8 -7 -7 -7 -5 -5 -5 -5 -4 -4 -4 -4 ----------- Run | Yrd Mat Min Mat Min Exi Min Mat Gar Fac Sto Rec Fac Upp Upp Zhi Pro Fac Was Fac Matter Collected 4579 | 190 284 174 539 92 . 371 103 175 123 357 . 189 265 75 120 454 64 . 1004 Remotely . | . . . . . . . . . . . . . . . . . . . . Salvage Created 10148 | . 413 174 1116 105 14 391 634 770 243 1519 64 388 464 40 296 863 475 . 2179 Parts 469 | . 29 2 63 9 . 34 30 34 13 48 2 13 20 . 3 35 41 . 93 Haulers Intercepted 6 | . 2 . 1 . . . 2 . . . . . . . . . 1 . . Recyclers Shooed 2 | . . . . . . . . . . . . . . . . . . . 2 Parts Field Recycled . | . . . . . . . . . . . . . . . . . . . . Retrieved Matter . | . . . . . . . . . . . . . . . . . . . . Parts Self-Destructed 85 | . . . . . . . . . . . . . 20 1 3 61 . . . Prevented 54 | . . . . . . . . . . . . . . 1 . 53 . . . Parts Restored . | . . . . . . . . . . . . . . . . . . . . Kills | -11 -10 -10 -9 -9 -9 -8 -8 -8 -7 -7 -7 -5 -5 -5 -5 -4 -4 -4 -4 ------- Run | Yrd Mat Min Mat Min Exi Min Mat Gar Fac Sto Rec Fac Upp Upp Zhi Pro Fac Was Fac Combat Hostiles Destroyed 186 | . 6 9 22 5 4 13 7 18 4 30 1 7 13 1 . 14 8 . 24 Melee 1 | . . . . . . . . 1 . . . . . . . . . . . Guns 95 | . 6 9 7 . . 5 . 3 . 24 1 7 12 1 . 9 . . 11 Cannons 59 | . . . 13 5 . 8 5 12 4 3 . . . . . . 1 . 8 AOE 17 | . . . . . 4 . . . . . . . . . . 2 7 . 4 Classes Destroyed 17 | . 4 2 4 . . 2 1 . 1 . . . 1 . . . 2 . . Worker 11 | . . . . . . . . . . . . . . . . . 6 . 5 Builder 14 | . . . 3 . . . . . 1 . . . . . . . 6 . 4 Tunneler 2 | . . . . . . . . . . . . . . . . . 1 . 1 Hauler 6 | . 2 . 1 . . . 2 . . . . . . . . . 1 . . Recycler 5 | . . . . . . . 1 . . . . 1 . . . . . . 3 Minesweeper 1 | . . . . . . . . . . . . . 1 . . . . . . Operator 4 | . 2 . . . . . 1 . . 1 . . . . . . . . . Watcher 13 | . 1 . 4 . . . 3 . 1 1 . . . . . . 1 . 2 Swarmer 38 | . . . 3 4 . 8 . 4 . . . 3 9 . . 3 . . 4 Grunt 71 | . 6 2 10 1 . 2 2 10 1 14 . 4 3 . . 5 5 . 6 Brawler 3 | . . . . . . 1 . . 1 1 . . . . . . . . . Duelist 4 | . . . 1 . . . 1 . 1 1 . . . . . . . . . Sentry 29 | . . . 8 . . . 2 3 . 12 1 . 1 . . 1 . . 1 Demolisher 1 | . . 1 . . . . . . . . . . . . . . . . . Hunter 18 | . . . . . . 2 2 1 . 1 . . . 1 . 4 1 . 6 Programmer 12 | . . . . . . . . . 1 1 . . . . . 1 2 . 7 Assembled 10 | . . 6 . . 4 . . . . . . . . . . . . . . Best Kill Streak 13 | . 2 3 4 4 4 8 3 4 3 5 1 3 4 1 . 4 13 . 13 Combat Bots Only 8 | . 2 3 4 4 4 8 2 4 3 5 1 3 4 1 . 5 4 . 8 Max Kills in Single Turn 8 | . 1 1 2 1 2 2 1 1 1 1 1 1 2 1 . 2 8 . 2 Gunslinging 1 | . . . . . . . . . . . . . 1 . . . . . . Exploded 3 | . . . . . 2 . . . . . . . . . . 1 3 . 1 Melee 1 | . . . . . . . . 1 . . . . . . . . . . . Uniques/NPCs Destroyed . | . . . . . . . . . . . . . . . . . . . . Combat | -11 -10 -10 -9 -9 -9 -8 -8 -8 -7 -7 -7 -5 -5 -5 -5 -4 -4 -4 -4 -------- Run | Yrd Mat Min Mat Min Exi Min Mat Gar Fac Sto Rec Fac Upp Upp Zhi Pro Fac Was Fac Hostile Shots Fired 1972 | . 25 54 103 25 35 50 39 108 27 333 54 115 112 33 . 225 85 3 546 Missed 652 | . 5 8 30 3 12 11 12 25 6 102 25 33 41 9 . 90 48 1 191 Hits 1320 | . 20 46 73 22 23 39 27 83 21 231 29 82 71 24 . 135 37 2 355 Melee 22 | . . 2 6 . 2 . 4 . 1 2 . . . 3 . . . 2 . Projectile 1298 | . 20 44 67 22 21 39 23 83 20 229 29 82 71 21 . 135 37 . 355 AOE 20 | . . 14 . . . . . . . . . . . . . . 2 . 4 Critical Strikes 58 | . . . 1 . 6 . 2 1 2 3 . 3 . . . 7 2 1 30 Actively Blocked 1 | . . . . . . . . . . . . . . . . . . . 1 Damage Taken 20678 | . 252 959 1039 176 461 441 470 1171 303 2097 196 1410 921 313 . 2651 925 98 6795 Core 2792 | . 44 137 129 24 30 72 64 211 30 217 8 216 143 82 . 251 184 . 950 Absorbed by Shields 124 | . . . . . . . . 16 . . . . . . . . . . 108 Redirected to Shielding 152 | . . . . . . . . . . . . . . . . . . . 152 Ignored by Resistances 199 | . . . . . . . . 16 3 152 28 . . . . . . . . Regen/Repaired (Parts) 1227 | . . . 178 . . . . . . 637 . . . . . 412 . . . Core Remaining (%) 51 | 100 . 27 . . . 36 . 50 . . 63 . . . . 30 . . . Volleys Fired 706 | . 47 41 87 9 7 32 41 106 19 89 6 27 28 12 8 38 17 . 92 Largest 3 | . 2 2 2 2 1 2 2 2 2 2 2 2 2 2 1 2 3 . 3 Hottest 270 | . 40 40 136 136 68 96 136 137 137 155 122 141 168 123 35 188 270 . 270 Shots Fired 1285 | . 94 78 173 16 7 54 71 169 38 165 12 52 51 21 8 64 29 . 183 Gun 809 | . 94 78 102 . . 24 14 41 10 127 12 52 51 21 8 60 8 . 107 Cannon 454 | . . . 71 16 1 30 57 128 28 38 . . . . . . 13 . 72 Launcher 22 | . . . . . 6 . . . . . . . . . . 4 8 . 4 Special . | . . . . . . . . . . . . . . . . . . . . Kinetic 421 | . 94 78 94 . . 24 7 . . . . . 8 12 8 19 . . 77 Thermal 842 | . . . 79 16 1 30 64 169 38 165 12 52 43 9 . 41 21 . 102 Explosive 14 | . . . . . 6 . . . . . . . . . . . 8 . . Electromagnetic 8 | . . . . . . . . . . . . . . . . 4 . . 4 Robot Hit Streak 37 | . 22 20 20 3 4 6 28 15 3 21 8 37 16 8 14 16 3 . 11 Robot Miss Streak 6 | . 4 3 5 2 1 5 2 4 3 3 1 6 2 2 . 3 4 . 3 Penetration Max 2 | . . . . . . . . . . . . . . . 1 1 . . 2 Secondary Targets 11 | . . 2 . . . . . . . . . 2 3 . . 1 . . 3 Max Gunslinging Chain 1 | . . 1 . . . . . . . . . 1 1 . . 1 . . 1 Shots Hit Robots 870 | . 65 55 120 7 4 29 56 95 21 132 9 39 39 18 8 46 10 . 117 Core Hits 528 | . 26 24 42 5 9 17 20 29 11 127 4 29 26 5 8 34 36 . 76 Critical Kills 10 | . . 1 . . . . . 1 . 1 . . . . . . . . 7 Critical Parts Destroyed 10 | . 1 . 3 . . . . . . . . . 2 . . . . . 4 Critical Strikes 30 | . 1 1 4 . . . . 1 . 4 1 1 2 . . . . . 15 Burn 10 | . . . 1 . . . . . . 3 1 1 . . . . . . 4 Meltdown 3 | . . . . . . . . 1 . 1 . . . . . . . . 1 Destroy 15 | . 1 1 2 . . . . . . . . . 2 . . . . . 9 Smash 2 | . . . 1 . . . . . . . . . . . . . . . 1 Melee Attacks 18 | . 2 . 6 . 2 . . . . . . . . . . . . . 8 Impact 18 | . 2 . 6 . 2 . . . . . . . . . . . . . 8 Slashing . | . . . . . . . . . . . . . . . . . . . . Piercing . | . . . . . . . . . . . . . . . . . . . . Sneak Attacks . | . . . . . . . . . . . . . . . . . . . . Combat Hostiles . | . . . . . . . . . . . . . . . . . . . . Follow-up Attacks . | . . . . . . . . . . . . . . . . . . . . Damage Inflicted 23103 | . 534 442 2013 166 262 611 1096 1985 479 3361 180 885 986 426 237 1634 2731 . 5075 Guns 11843 | . 534 435 948 . . 223 205 554 149 2811 180 885 986 426 237 1228 67 . 1975 Cannons 6830 | . . . 867 166 2 388 887 1376 330 536 . . . . . . 223 . 2055 Explosions 3943 | . . . . . 260 . . . . . . . . . . 406 2441 . 836 Melee 397 | . . . 196 . . . . . . . . . . . . . . . 201 Ramming 90 | . . 7 2 . . . 4 55 . 14 . . . . . . . . 8 Kinetic 4236 | . 534 435 847 . . 223 94 . . . . . 73 226 237 380 . . 1187 Thermal 14858 | . . . 968 166 2 388 998 1930 479 3347 180 885 913 200 . 848 633 . 2921 Explosive 2358 | . . . . . 260 . . . . . . . . . . . 2098 . . Electromagnetic 1164 | . . . . . . . . . . . . . . . . 406 . . 758 Impact 397 | . . . 196 . . . . . . . . . . . . . . . 201 Slashing . | . . . . . . . . . . . . . . . . . . . . Piercing . | . . . . . . . . . . . . . . . . . . . . Highest Corruption 25 | . . 5 3 3 3 3 5 5 . 7 7 . . . . 3 4 15 25 Average Corruption 5 | . . 5 2 3 3 3 5 5 . 3 7 . . . . 2 3 9 19 Corruption Purged . | . . . . . . . . . . . . . . . . . . . . Corruption Blocked . | . . . . . . . . . . . . . . . . . . . . Effects 266 | . . 5 16 6 20 22 8 35 . 30 10 . . . . 41 6 4 63 Message Errors 59 | . . 2 3 1 6 6 3 4 . 8 3 . . . . 8 1 1 13 Matter Fused 73 | . . . 5 3 8 4 . 13 . 12 1 . . . . 9 1 1 16 Heat Flow Errors 25 | . . 1 3 . 1 3 1 4 . 2 1 . . . . 2 . . 7 Energy Discharges 29 | . . . 2 1 1 3 1 6 . 1 1 . . . . 8 . 1 4 Parts Rejected 2 | . . . . . . . . . . . . . . . . 1 1 . . Parts Fused 1 | . . . . . . . . . . . . . . . . . . . 1 Data Loss (minor) 39 | . . 1 2 1 3 3 1 3 . 4 3 . . . . 8 2 1 7 Data Loss (major) 10 | . . . . . 1 2 . 3 . . 1 . . . . 1 1 . 1 Misfires 9 | . . . . . . 1 1 2 . 1 . . . . . 3 . . 1 Alerts 4 | . . . . . . . 1 . . 1 . . . . . . . . 2 Misdirections 5 | . . . . . . . . . . . . . . . . . . . 5 Weapon Failures 10 | . . 1 1 . . . . . . 1 . . . . . 1 . . 6 Overload Shots . | . . . . . . . . . . . . . . . . . . . . Overflow Damage 460 | . . . 111 1 . . 17 24 6 . . . . . . . 153 . 148 Projectiles 174 | . . . 2 1 . . 17 24 6 . . . . . . . . . 124 Explosions 177 | . . . . . . . . . . . . . . . . . 153 . 24 Melee 109 | . . . 109 . . . . . . . . . . . . . . . . Knockbacks 3 | . . . 2 . . . . . . . . . . . . . . . 1 Impact 3 | . . . 2 . . . . . . . . . . . . . . . 1 Kinetic . | . . . . . . . . . . . . . . . . . . . . Secondary . | . . . . . . . . . . . . . . . . . . . . Self-Inflicted Damage 155 | . . . . . 32 . . . . . . . . . . . 13 . 110 Shots 5 | . . . . . 1 . . . . . . . . . . . 1 . 3 Rammed 4 | . . 4 . . . . . . . . . . . . . . . . . Targets Rammed 21 | . . 4 1 . . . 2 11 . 2 . . . . . . . . 1 Kicked 17 | . . . 1 . . . 2 11 . 2 . . . . . . . . 1 Crushed . | . . . . . . . . . . . . . . . . . . . . Highest Temperature 535 | . 18 75 265 135 134 202 189 535 321 339 241 90 63 . . 251 288 . 327 Average Temperature 80 | . 8 22 52 58 50 85 34 126 72 80 65 28 33 . . 62 75 . 111 Received Heat Transfer 4055 | . 129 228 258 6 . 54 81 467 180 846 63 350 135 40 . 438 139 . 641 Effects 14 | . . . . . . . . 5 1 2 . . . . . . . . 6 Shutdowns 1 | . . . . . . . . . . . . . . . . . . . 1 Energy Bleed 4 | . . . . . . . . . 1 2 . . . . . . . . 1 Interference 8 | . . . . . . . . 5 . . . . . . . . . . 3 Matter Decay 1 | . . . . . . . . . . . . . . . . . . . 1 Siege Activations . | . . . . . . . . . . . . . . . . . . . . Martial Activations . | . . . . . . . . . . . . . . . . . . . . Shielding Activations . | . . . . . . . . . . . . . . . . . . . . Robots Disrupted . | . . . . . . . . . . . . . . . . . . . . Combat Hostiles . | . . . . . . . . . . . . . . . . . . . . Robots Corrupted 4 | . . . 2 . . . . . . . . . . . . 2 . . . Combat Hostiles 4 | . . . 2 . . . . . . . . . . . . 2 . . . Parts Fried 11 | . . . . . . . . . . . . . . . . 6 . . 5 Impact Corruptions 3 | . . . 3 . . . . . . . . . . . . . . . . Robots Melted 10 | . . . . . . . 2 2 . 3 . . 1 . . 1 . . 1 Combat Hostiles 10 | . . . . . . . 2 2 . 3 . . 1 . . 1 . . 1 Parts Melted 53 | . . . 1 . . 1 3 12 . 18 2 1 3 2 . 3 . . 7 Heat Transferred 25150 | . . . 1887 296 9 703 1924 3514 851 6162 407 1887 1641 386 . 1492 583 . 3408 Parts Sabotaged . | . . . . . . . . . . . . . . . . . . . . Parts Stolen 3 | . . . . . . . . . . . . . . 3 . . . . . Parts Stripped . | . . . . . . . . . . . . . . . . . . . . Power Chain Reactions 1 | . . . . . . . . . . . . . . . . . . . 1 Alert | -11 -10 -10 -9 -9 -9 -8 -8 -8 -7 -7 -7 -5 -5 -5 -5 -4 -4 -4 -4 ------- Run | Yrd Mat Min Mat Min Exi Min Mat Gar Fac Sto Rec Fac Upp Upp Zhi Pro Fac Was Fac Maximum Alert Level 3 | . . . 1 . . . . 3 2 1 1 1 . . . . 3 1 1 Low Security (%) 73 | 100 100 100 95 100 . 100 100 23 26 76 54 22 . . . . 13 31 98 Level 1 18 | . . . 4 . . . . 25 68 23 45 77 . . . . 48 68 1 Level 2 6 | . . . . . . . . 40 5 . . . . . . . 33 . . Level 3 1 | . . . . . . . . 10 . . . . . . . . 5 . . Level 4 . | . . . . . . . . . . . . . . . . . . . . Level 5 . | . . . . . . . . . . . . . . . . . . . . High Security . | . . . . . . . . . . . . . . . . . . . . Max Security . | . . . . . . . . . . . . . . . . . . . . Peak Influence 790 | . 49 30 317 150 . 150 40 790 414 350 229 391 . . . . 746 256 217 Initial 414 | . . 10 . 60 . . . . 414 71 134 391 . . . . 307 256 123 Average 144 | . 12 3 86 62 . 39 7 393 264 156 182 281 . . . . 397 222 76 Influence Increases 7578 | . 262 80 706 120 . 325 209 830 108 1124 234 708 345 30 10 452 1073 . 962 Destroy 0b10 Robot/C 3472 | . 120 60 440 100 . 260 112 320 64 576 40 160 260 20 . 280 160 . 500 Destroy 0b10 Robot/NC 286 | . 25 . 40 . . . 28 . 8 15 . 5 5 . 10 . 75 . 75 Destroy Leader 722 | . 36 20 130 20 . 50 50 24 10 194 . 20 20 10 . 10 24 . 104 Allied During Kill 181 | . . . . . . . . 11 1 111 9 2 . . . 42 . . 5 Trap Triggered on 0b10 10 | . . . . . . . . . . . . . . . . . . . 10 Successful Hack 157 | . 20 . 15 . . . 18 18 13 30 5 26 . . . . . . 12 Select Force Hacks 180 | . . . . . . . . . . . 180 . . . . . . . . Disable Machine 441 | . . . 45 . . . . . . 81 . 30 . . . . 240 . 45 Anti-Garrison Action 320 | . . . . . . . . 320 . . . . . . . . . . . Destroy Structure 366 | . 1 . 6 . . . 1 77 . 21 . . . . . . 184 . 76 Advance Influence 600 | . . . . . . . . . . . . 300 . . . . 300 . . Lose Combat Pursuer 843 | . 60 . 30 . . 15 . 60 12 96 . 165 60 . . 120 90 . 135 Influence Decreases 7393 | . 235 107 552 274 . 325 209 40 740 936 362 705 506 90 10 440 351 558 953 Entered New Map 1544 | . . 17 . 94 . . . . 376 87 212 127 83 12 . . 5 478 53 Time Decay 4066 | . 235 80 372 180 . 315 203 . 334 530 130 278 355 68 10 210 246 60 460 Search Patrol Dispatched 300 | . . . . . . . . . . . . 200 . . . . 100 . . Lost Part 834 | . . 10 30 . . 10 6 20 10 70 . 40 68 10 . 130 . 20 410 Lost Ally 349 | . . . . . . . . 20 20 99 20 60 . . . 100 . . 30 Purge Threat 300 | . . . 150 . . . . . . 150 . . . . . . . . . Squads Dispatched 31 | . 2 . 1 1 . . 1 . 3 11 . . . . . 1 3 . 8 Investigation 7 | . . . . 1 . . 1 . 1 2 . . . . . 1 . . 1 Extermination 7 | . . . . . . . . . 1 3 . . . . . . . . 3 Reinforcement 14 | . 2 . 1 . . . . . 1 3 . . . . . . 3 . 4 Assault . | . . . . . . . . . . . . . . . . . . . . Garrison 3 | . . . . . . . . . . 3 . . . . . . . . . Intercept . | . . . . . . . . . . . . . . . . . . . . Searches Triggered 3 | . . . . . . . . . . . . 2 . . . . 1 . . Construction Impeded 3 | . . . . . . . . . . . . . . . . . 1 . 2 Haulers Reinforced 3 | . . . . . . . . . . 2 . . . . . . 1 . . Active Scanning Responses . | . . . . . . . . . . . . . . . . . . . . Cargo Convoy Interrupts . | . . . . . . . . . . . . . . . . . . . . Stealth | -11 -10 -10 -9 -9 -9 -8 -8 -8 -7 -7 -7 -5 -5 -5 -5 -4 -4 -4 -4 --------- Run | Yrd Mat Min Mat Min Exi Min Mat Gar Fac Sto Rec Fac Upp Upp Zhi Pro Fac Was Fac Distress Signals 17 | . 1 . 3 . . . 1 . . 2 . 1 . . . 1 4 . 4 Communications Jammed 40 | . . . . . . . . . 1 39 . . . . . . . . . Distress Signals 39 | . . . . . . . . . . 39 . . . . . . . . . Times Spotted 375 | . 16 11 37 6 8 14 11 21 10 50 2 20 17 8 . 43 27 5 69 Peak Tracking Total 12 | . 3 3 5 4 9 8 3 3 3 7 1 11 3 4 . 10 8 5 12 Tactical Retreats 37 | . 3 . 1 . . 1 . 2 1 4 . 5 4 . . 6 2 1 7 Traps | -11 -10 -10 -9 -9 -9 -8 -8 -8 -7 -7 -7 -5 -5 -5 -5 -4 -4 -4 -4 ------- Run | Yrd Mat Min Mat Min Exi Min Mat Gar Fac Sto Rec Fac Upp Upp Zhi Pro Fac Was Fac Traps Triggered 14 | . 1 . 2 . . . . 4 1 4 . . . . . . 1 . 1 Indirectly . | . . . . . . . . . . . . . . . . . . . . Trap Hack Attempts . | . . . . . . . . . . . . . . . . . . . . Triggered . | . . . . . . . . . . . . . . . . . . . . Disarmed . | . . . . . . . . . . . . . . . . . . . . Reprogrammed . | . . . . . . . . . . . . . . . . . . . . Reused 1 | . . . . . . . . . . . . . . . . . . . 1 Traps Extracted 4 | . . . . . . . . . . . . . 4 . . . . . . Installed 1 | . . . . . . . . . . . . . . . . . . . 1 Triggered 1 | . . . . . . . . . . . . . . . . . . . 1 Most Traps Carried 15 | . . . . . . . . . . . . . 15 15 15 15 14 14 14 Machines | -11 -10 -10 -9 -9 -9 -8 -8 -8 -7 -7 -7 -5 -5 -5 -5 -4 -4 -4 -4 ---------- Run | Yrd Mat Min Mat Min Exi Min Mat Gar Fac Sto Rec Fac Upp Upp Zhi Pro Fac Was Fac Machines Disabled 39 | . . . 3 . 1 . . 7 . 6 . 2 . . 1 . 16 . 3 Max in Single Turn 12 | . . . 1 . 1 . . 2 . 2 . 1 . . 1 . 12 . 3 Garrison Relay 5 | . . . . . . . . 5 . . . . . . . . . . . Phase Generator 1 | . . . . . . . . 1 . . . . . . . . . . . Machines Repaired . | . . . . . . . . . . . . . . . . . . . . Machines Dismantled . | . . . . . . . . . . . . . . . . . . . . Machines Sabotaged . | . . . . . . . . . . . . . . . . . . . . Overloaded Fab Kills . | . . . . . . . . . . . . . . . . . . . . Hacking | -11 -10 -10 -9 -9 -9 -8 -8 -8 -7 -7 -7 -5 -5 -5 -5 -4 -4 -4 -4 --------- Run | Yrd Mat Min Mat Min Exi Min Mat Gar Fac Sto Rec Fac Upp Upp Zhi Pro Fac Was Fac Machines Accessed 66 | . 6 . 9 2 2 . 7 4 3 12 8 2 . . 4 2 2 . 3 Terminals 39 | . 6 . 6 . . . 5 4 2 10 2 1 . . . 1 . . 2 Fabricators 1 | . . . . . . . . . . . . . . . . . 1 . . Repair Stations 4 | . . . 2 . . . . . . 1 . . . . . 1 . . . Recycling Units 7 | . . . . . . . . . . . 6 . . . . . 1 . . Scanalyzers 4 | . . . 1 . . . 1 . . . . 1 . . . . . . 1 Garrison Access 3 | . . . . . . . 1 . 1 1 . . . . . . . . . Total Hacks 161 | . 20 . 24 2 5 . 15 6 5 28 9 6 . . 17 8 6 . 10 Successful 99 | . 9 . 14 2 5 . 11 2 1 13 7 4 . . 17 6 5 . 3 Failed 60 | . 11 . 9 . . . 4 4 4 15 2 1 . . . 2 1 . 7 Catastrophic 12 | . 1 . 1 . . . 1 2 1 4 1 . . . . . . . 1 Database Lockouts 2 | . . . 1 . . . . . . . . 1 . . . . . . . Manual 61 | . 19 . 10 . 1 . 11 . . 7 8 3 . . . . 2 . . Terminals 87 | . 20 . 16 . . . 13 6 3 19 2 3 . . . 1 . . 4 Fabricators 4 | . . . . . . . . . . . . . . . . . 4 . . Repair Stations 20 | . . . 6 . . . . . . 7 . . . . . 7 . . . Recycling Units 9 | . . . . . . . . . . . 7 . . . . . 2 . . Scanalyzers 12 | . . . 2 . . . 1 . . . . 3 . . . . . . 6 Garrison Access 5 | . . . . . . . 1 . 2 2 . . . . . . . . . Terminal Hacks 50 | . 5 . 4 2 5 . 5 2 1 7 . . . . 17 1 . . 1 Record 9 | . . . . . 4 . . . . . . . . . 5 . . . . Part Schematic 7 | . 1 . . . . . 1 . . 1 . . . . 4 . . . . Robot Analysis 8 | . 3 . . . . . . . . 1 . . . . 4 . . . . Prototype ID Bank 10 | . . . 2 . . . 2 . . 2 . . . . 4 . . . . Open Door 6 | . . . . 2 . . . 1 . 2 . . . . . 1 . . . Branch Access Points 2 | . . . . . . . . . 1 . . . . . . . . . 1 Unreport Threat 2 | . . . 1 . . . . . . 1 . . . . . . . . . Hauler Manifests 3 | . 1 . 1 . . . 1 . . . . . . . . . . . . Zone Layout 1 | . . . . . . . 1 . . . . . . . . . . . . Patrol Navigation 1 | . . . . . . . . 1 . . . . . . . . . . . Proto ID Catalog 1 | . . . . . 1 . . . . . . . . . . . . . . Fabricator Hacks 2 | . . . . . . . . . . . . . . . . . 2 . . Load Schematic 1 | . . . . . . . . . . . . . . . . . 1 . . Build 1 | . . . . . . . . . . . . . . . . . 1 . . Repair Station Hacks 15 | . . . 6 . . . . . . 4 . . . . . 5 . . . Scan Component 9 | . . . 3 . . . . . . 3 . . . . . 3 . . . Repair 6 | . . . 3 . . . . . . 1 . . . . . 2 . . . Recycling Unit Hacks 2 | . . . . . . . . . . . . . . . . . 2 . . Retrieve Matter 1 | . . . . . . . . . . . . . . . . . 1 . . Retrieve Components 1 | . . . . . . . . . . . . . . . . . 1 . . Scanalyzer 6 | . . . 1 . . . 1 . . . . 2 . . . . . . 2 Retrieve Study 6 | . . . 1 . . . 1 . . . . 2 . . . . . . 2 Garrison Access Hacks 1 | . . . . . . . 1 . . . . . . . . . . . . Unlock Access 1 | . . . . . . . 1 . . . . . . . . . . . . Unauthorized Hacks 23 | . 4 . 3 . . . 4 . . 2 7 2 . . . . 1 . . Terminals 16 | . 4 . 3 . . . 4 . . 2 1 2 . . . . . . . Track 1 | . 1 . . . . . . . . . . . . . . . . . . Assimilate 2 | . . . 1 . . . 1 . . . . . . . . . . . . Botnet 11 | . 2 . 2 . . . 3 . . 2 1 1 . . . . . . . Operators 2 | . 1 . . . . . . . . . . 1 . . . . . . . Fabricators 1 | . . . . . . . . . . . . . . . . . 1 . . Prioritize 1 | . . . . . . . . . . . . . . . . . 1 . . Repair Stations . | . . . . . . . . . . . . . . . . . . . . Recycling Units 6 | . . . . . . . . . . . 6 . . . . . . . . Tunnel 6 | . . . . . . . . . . . 6 . . . . . . . . Scanalyzers . | . . . . . . . . . . . . . . . . . . . . Garrison Access . | . . . . . . . . . . . . . . . . . . . . Data Cores Recovered 1 | . . . . . . . . . . 1 . . . . . . . . . Used 1 | . . . . . . . . . . 1 . . . . . . . . . Hacking Detections 41 | . 6 . 6 . . . 5 3 3 9 2 2 . . . 1 1 . 3 Full Trace Events 6 | . . . . . . . 1 . 1 2 . . . . . 1 . . 1 Feedback Events . | . . . . . . . . . . . . . . . . . . . . Feedback Blocked . | . . . . . . . . . . . . . . . . . . . . Robot Schematics Acquired . | . . . . . . . . . . . . . . . . . . . . Robots Built . | . . . . . . . . . . . . . . . . . . . . Authchips . | . . . . . . . . . . . . . . . . . . . . Time . | . . . . . . . . . . . . . . . . . . . . Total Robot Build Rating . | . . . . . . . . . . . . . . . . . . . . Part Schematics Acquired 7 | . 1 . . . . . 1 . . 1 . . . . 4 . . . . Parts Built 1 | . . . . . . . . . . . . . . . . . 1 . . Authchips 1 | . . . . . . . . . . . . . . . . . 1 . . Time 93 | . . . . . . . . . . . . . . . . . 93 . . Total Part Build Rating 7 | . . . . . . . . . . . . . . . . . 7 . . Part Studies Acquired 6 | . . . 1 . . . 1 . . . . 2 . . . . . . 2 Parts Repaired 6 | . . . 3 . . . . . . 1 . . . . . 2 . . . Time 278 | . . . 121 . . . . . . 61 . . . . . 96 . . . Parts Recycled . | . . . . . . . . . . . . . . . . . . . . Recycled Matter . | . . . . . . . . . . . . . . . . . . . . Retrieved Matter 69 | . . . . . . . . . . . . . . . . . 69 . . Retrieved Components 9 | . . . . . . . . . . . . . . . . . 9 . . Parts Scanalyzed . | . . . . . . . . . . . . . . . . . . . . Part Schematics Acquired . | . . . . . . . . . . . . . . . . . . . . Parts Damaged . | . . . . . . . . . . . . . . . . . . . . Bothacking | -11 -10 -10 -9 -9 -9 -8 -8 -8 -7 -7 -7 -5 -5 -5 -5 -4 -4 -4 -4 ------------ Run | Yrd Mat Min Mat Min Exi Min Mat Gar Fac Sto Rec Fac Upp Upp Zhi Pro Fac Was Fac Used RIF Installer . | . . . . . . . . . . . . . . . . . . . . Robots Hacked . | . . . . . . . . . . . . . . . . . . . . Non-combat . | . . . . . . . . . . . . . . . . . . . . Combat . | . . . . . . . . . . . . . . . . . . . . Robot Hacks Applied . | . . . . . . . . . . . . . . . . . . . . Relay Couplers Released 24 | . . . . . . . . 24 . . . . . . . . . . . Machine Destruction 24 | . . . . . . . . 24 . . . . . . . . . . . Fabnet Peak Effective % . | . . . . . . . . . . . . . . . . . . . . Robots Rewired 8 | . . . . . . . . 2 . . . . . . . 6 . . . Allies Hacked 1 | . . . . . . . . . . . . . . . . 1 . . . Hacks Repelled . | . . . . . . . . . . . . . . . . . . . . Allies | -11 -10 -10 -9 -9 -9 -8 -8 -8 -7 -7 -7 -5 -5 -5 -5 -4 -4 -4 -4 -------- Run | Yrd Mat Min Mat Min Exi Min Mat Gar Fac Sto Rec Fac Upp Upp Zhi Pro Fac Was Fac Total Allies 19 | . . . . . . . . 2 . 10 . . . . . 7 . . . Largest Group 10 | . . . . . . . . 2 1 10 4 3 . . . 6 . . . Highest-Rated Group 173 | . . . . . . . . 51 31 173 64 48 . . . 168 . . . Highest-Rated Ally 50 | . . . . . . . . 31 31 29 16 16 . . . 50 . . . Initial Warlord ECA Mod 7 | . . . . . . . . . 7 7 7 5 5 5 5 4 4 4 4 Total Orders 6 | . . . . . . . . . . . . . . . . 1 3 . 2 STAY 1 | . . . . . . . . . . . . . . . . 1 . . . EXPLORE 1 | . . . . . . . . . . . . . . . . . 1 . . RETURN 4 | . . . . . . . . . . . . . . . . . 2 . 2 Ally Attacks 149 | . . . . . . . . 12 13 36 13 6 . . . 10 . . 59 Total Damage 1794 | . . . . . . . . 265 190 465 201 79 . . . 358 . . 236 Kills 8 | . . . . . . . . 2 . 3 1 1 . . . . . . 1 Allies Corrupted 1 | . . . . . . . . . . 1 . . . . . . . . . Allies Melted 1 | . . . . . . . . . . . . . . . . 1 . . . Intel | -11 -10 -10 -9 -9 -9 -8 -8 -8 -7 -7 -7 -5 -5 -5 -5 -4 -4 -4 -4 ------- Run | Yrd Mat Min Mat Min Exi Min Mat Gar Fac Sto Rec Fac Upp Upp Zhi Pro Fac Was Fac Active Infowar (turns) 5456 | . 609 . 111 . . . . . 84 1195 264 612 894 . . . 509 125 1053 Optics 1573 | . . . . . . . . . . . . . . . . . 395 125 1053 Sensors 1430 | . . . . . . . . . . . . 536 894 . . . . . . Terrain 609 | . 609 . . . . . . . . . . . . . . . . . . Traps 86 | . . . 86 . . . . . . . . . . . . . . . . T.N.C. 25 | . . . 25 . . . . . . . . . . . . . . . . Jamming 2353 | . . . . . . . . . 84 1195 264 172 . . . . 220 . 418 Robot Analysis Total 8 | . 3 . . . . . . . . 1 . . . . 4 . . . . Derelict Logs Recovered 4 | . . . . 1 . . . . . . . . 1 1 . 1 . . . Drone Launches 25 | . . . . . . . . . . . . . . . . . 7 . 18 Drone Recoveries 22 | . . . . . . . . . . . . . . . . . 7 . 15 Exploration | -11 -10 -10 -9 -9 -9 -8 -8 -8 -7 -7 -7 -5 -5 -5 -5 -4 -4 -4 -4 ------------- Run | Yrd Mat Min Mat Min Exi Min Mat Gar Fac Sto Rec Fac Upp Upp Zhi Pro Fac Was Fac Turns Passed 18603 | 56 977 700 1742 456 890 973 867 1337 741 1496 264 612 2301 664 433 2202 524 125 1243 Spaces Moved 10733 | 40 520 214 865 323 684 602 488 729 473 843 199 474 1181 370 226 1405 320 81 696 Core 80 | 5 . . . . . . . . . . . . . . . 1 . . 74 Treads 1079 | . 108 44 . . . . . . . . . . 348 370 204 5 . . . Legs 9357 | 35 412 170 865 323 684 602 488 729 473 843 199 474 833 . 22 1399 320 81 405 Wheels 217 | . . . . . . . . . . . . . . . . . . . 217 Hover . | . . . . . . . . . . . . . . . . . . . . Flight . | . . . . . . . . . . . . . . . . . . . . Fastest Speed 50 | 50 120 120 110 120 120 130 122 122 116 116 121 85 98 166 166 115 112 110 50 Average Speed 128 | 111 128 128 135 120 124 137 140 125 116 120 121 94 146 166 175 120 115 149 108 Slowest Speed 1000 | 120 160 160 190 120 190 250 212 212 122 212 121 109 180 167 260 1000 120 187 260 Overloaded Moves . | . . . . . . . . . . . . . . . . . . . . Propulsion Burnouts . | . . . . . . . . . . . . . . . . . . . . Robots Hopped . | . . . . . . . . . . . . . . . . . . . . Potential Cave-ins 4 | . . . . . . . . . . . . . 2 . . . . . 2 Cave-ins Triggered . | . . . . . . . . . . . . . . . . . . . . Teleports 1 | . . . . . . . . . . . . . . . . . . . 1 Exploration Rate (%) 54 | 3 66 25 74 82 52 97 46 71 21 87 49 11 91 50 62 82 15 83 19 Regions Visited 19 Branch Regions 10 Pre-discovered Areas 13 | . . 1 . . 1 . . . . . 6 . 2 . 3 . . . . Known Exits Taken 5 | . . . . . . . 1 . 1 . . 1 1 . . 1 . . . Unknown Exits Taken 11 | 1 1 1 1 1 1 1 . . . 1 1 . . 1 1 . . . . Scrap Searched 15 | . . 1 . 2 . 3 . . . . . . 4 1 . 4 . . . Spaces Dug 7 | . 1 . . . . . . . . . . . . . . . . . 6 Terrain Destroyed 271 | . 1 . . . 19 . . 76 . 15 . . 4 3 . 13 94 . 46 Melee 3 | . 1 . . . . . . . . . . . . . . . . . 2 Projectile 59 | . . . . . . . . . . 1 . . 4 3 . 13 5 . 33 AOE 209 | . . . . . 19 . . 76 . 14 . . . . . . 89 . 11 Terrain Rammed . | . . . . . . . . . . . . . . . . . . . . Walls Destroyed . | . . . . . . . . . . . . . . . . . . . . Machines Disabled . | . . . . . . . . . . . . . . . . . . . . Actions | -11 -10 -10 -9 -9 -9 -8 -8 -8 -7 -7 -7 -5 -5 -5 -5 -4 -4 -4 -4 --------- Run | Yrd Mat Min Mat Min Exi Min Mat Gar Fac Sto Rec Fac Upp Upp Zhi Pro Fac Was Fac Total 14314 | 49 752 574 1270 377 718 693 603 984 625 1151 210 578 1697 394 255 1852 447 84 1001 Wait 2164 | . 140 296 242 29 1 37 36 84 115 152 6 40 449 11 . 328 72 3 123 Move 10715 | 39 519 213 864 322 683 601 487 728 472 842 198 473 1180 369 225 1404 320 80 696 Hop . | . . . . . . . . . . . . . . . . . . . . Pick Up 154 | 4 19 1 24 5 7 10 10 6 3 18 . 7 8 . 4 12 7 . 9 Fast Attach 120 | 5 4 2 10 . 2 2 8 2 6 9 . 8 4 . 7 19 8 1 23 Attach 112 | 1 1 8 11 3 2 6 4 4 3 11 . 7 11 2 1 8 3 . 26 Detach 23 | . . 1 1 . . . . . . 1 . 3 6 . 4 3 . . 4 Swap 69 | . 8 2 8 3 1 2 2 1 1 8 . 6 8 . . 5 8 . 6 Drop 154 | . 12 6 16 6 13 3 13 6 6 19 . 7 3 . 3 17 12 . 12 Fire 706 | . 47 41 87 9 7 32 41 106 19 89 6 27 28 12 8 38 17 . 92 Melee 18 | . 2 . 6 . 2 . . . . . . . . . . . . . 8 Ram . | . . . . . . . . . . . . . . . . . . . . Kick 17 | . . . 1 . . . 2 11 . 2 . . . . . . . . 1 Crush 4 | . . 4 . . . . . . . . . . . . . . . . . Escape Stasis 5 | . . . . . . . . 5 . . . . . . . . . . . Rewire 52 | . . . . . . . . 31 . . . . . . 3 18 . . . Trap 1 | . . . . . . . . . . . . . . . . . . . 1 Miscellaneous . | . . . . . . . . . . . . . . . . . . . . Route ------- -11/Scrapyard -10/Materials (discovered 3 exits: *Mat x2 / [*Min]) -10/Mines -9/Materials (discovered 4 exits: *Mat x3 / *Min) -9/Mines (discovered 3 exits: *Mat x2 / *Exi) -9/Exiles -8/Mines (discovered 2 exits: *Mat x2) -8/Materials (discovered 2 exits: *Fac / Gar) -8/Garrison (discovered 2 exits: *Fac x2) -7/Factory (discovered 4 exits: *Fac / *Sto / Low x2) -7/Storage (discovered 2 exits: *Fac / *Rec) -7/Recycling -5/Factory (discovered 2 exits: *Fac / *Upp) -5/Upper Caves -5/Upper Caves (discovered 2 exits: *Fac / *Zhi) -5/Zhirov -4/Proximity Caves -4/Factory (discovered 2 exits: Upp / *Ext) -4/Waste -4/Factory (discovered 5 exits: Upp x2 / Ext x2 / Arm) History --------- Turn | Location | Event 4 | -11/Scrapyard | Discovered new exit (range 15) 57 | -11/Scrapyard | Entered Materials 305 | -10/Materials | Build established: Mutant 412 | -10/Materials | Discovered new exit (range 16) 744 | -10/Materials | Discovered new exit (range 4) 958 | -10/Materials | Discovered new exit (range 14) 1034 | -10/Materials | Entered Mines 1035 | -10/Mines | Assembled infested the area 1148 | -10/Mines | Lost 3 parts (1n2w) 1185 | -10/Mines | Core integrity fell below 50% 1530 | -10/Mines | Build established: Scavenger-Mutant 1580 | -10/Mines | Learned location of Storage (-7) 1675 | -10/Mines | Discovered new exit (range 9) 1734 | -10/Mines | Entered Materials 1734 | -9/Materials | Evolved 2 slots: Propulsion x1, Utility x1 2035 | -9/Materials | Central database locked down 2239 | -9/Materials | Repaired Adv. Beam Cannon 2278 | -9/Materials | Repaired Imp. Heat Sink 2484 | -9/Materials | Discovered new exit (range 3) 2704 | -9/Materials | Build established: Mutant 2778 | -9/Materials | Discovered new exit (range 10) 2878 | -9/Materials | Repaired Imp. Aluminum Leg 3244 | -9/Materials | Discovered new exit (range 16) 3450 | -9/Materials | Discovered new exit (range 16) 3476 | -9/Materials | Entered Mines 3485 | -9/Mines | Met a Derelict bent on vengeance 3608 | -9/Mines | Met a Derelict shopkeep closing up shop 3635 | -9/Mines | Discovered new exit (range 7) 3731 | -9/Mines | Learned Materials stockpile data 3745 | -9/Mines | Found the Drone Emporium 3768 | -9/Mines | Found Prototype Device 3769 | -9/Mines | Identified Thief Drone Bay 3820 | -9/Mines | Discovered new exit (range 8) 3905 | -9/Mines | Deemed a non-threat by the Exiles lab entrance 3928 | -9/Mines | Discovered new exit (range 5) 3932 | -9/Mines | Entered Exiles 3952 | -9/Exiles | Discovered new exit (range 15) 3962 | -9/Exiles | Met 8R-AWN 3982 | -9/Exiles | Met EX-HEX 4033 | -9/Exiles | Met EX-DEC 4040 | -9/Exiles | Learned location of Zion (-6) 4070 | -9/Exiles | Met EX-BIN 4085 | -9/Exiles | Aligned with FarCom system 4086 | -9/Exiles | Given EX-Vault access code 4115 | -9/Exiles | Opened EX-Vault 4146 | -9/Exiles | Warned to stay clear of 0b10 Research branches 4404 | -9/Exiles | Found Latent Energy Streamer 4411 | -9/Exiles | Found 0b10 Alert Chip 4778 | -9/Exiles | Attacked by the Exiles 4822 | -9/Exiles | Stole two prototypes: 0b10 Alert Chip, Latent Energy Streamer 4822 | -9/Exiles | Entered Mines 4832 | -8/Mines | Core integrity fell below 50% 4868 | -8/Mines | Lost 4 parts (2n1u1w) 4870 | -8/Mines | Discovered new exit (range 10) 4969 | -8/Mines | Destroyed 8 combat bots 5608 | -8/Mines | Build established: Scavenger-Mutant 5786 | -8/Mines | Discovered new exit (range 5) 5795 | -8/Mines | Entered Materials 5795 | -8/Materials | Evolved 2 slots: Utility x2 6424 | -8/Materials | Build established: Mutant 6547 | -8/Materials | Discovered new exit (range 14) 6660 | -8/Materials | Identified exit to Garrison 6662 | -8/Materials | Entered Garrison 6782 | -8/Garrison | Triggered checkpoint 6802 | -8/Garrison | Triggered checkpoint 6815 | -8/Garrison | Garrison Relay disabled 6975 | -8/Garrison | Garrison Relay disabled 7147 | -8/Garrison | Phase Generator disabled 7198 | -8/Garrison | Triggered checkpoint 7235 | -8/Garrison | Garrison Relay disabled 7616 | -8/Garrison | Discovered new exit (range 15) 7680 | -8/Garrison | Triggered checkpoint 7736 | -8/Garrison | Garrison Relay disabled 7818 | -8/Garrison | Triggered checkpoint 7839 | -8/Garrison | Garrison Relay disabled 7985 | -8/Garrison | Discovered new exit (range 10) 7999 | -8/Garrison | Entered Factory 7999 | -7/Factory | Accompanied by 1 ally 7999 | -7/Factory | Evolved 2 slots: Propulsion x1, Utility x1 8170 | -7/Factory | Build established: Scavenger-Mutant 8547 | -7/Factory | Discovered new exit (range 8) 8554 | -7/Factory | Identified exit to Factory 8596 | -7/Factory | Identified exit to Storage 8596 | -7/Factory | Identified exit to Lower Caves 8740 | -7/Factory | Entered Storage 8769 | -7/Storage | Build established: Mutant 8956 | -7/Storage | Garrison activated, responded to threat 9102 | -7/Storage | Repaired Broken Lgt. Armored Exoskeleton 9453 | -7/Storage | Lost 5 parts (1n4u) 9540 | -7/Storage | Found Prototype Launcher 9540 | -7/Storage | Identified Gui. EMP Blaster 9560 | -7/Storage | Assisted by bots powering up and referring to "LRC-V3" 9642 | -7/Storage | Lost 4 allies 9852 | -7/Storage | Build established: Commander-Mutant 10061 | -7/Storage | Discovered exit to Factory (range 13) 10199 | -7/Storage | Used back door to open Recycling access 10199 | -7/Storage | Discovered new exit (range 5) 10236 | -7/Storage | Entered Recycling 10236 | -7/Recycling | Accompanied by 4 allies 10275 | -7/Recycling | Scanned before Scraplab entrance 10474 | -7/Recycling | Discovered new exit (range 16) 10500 | -7/Recycling | Entered Factory 10500 | -5/Factory | Accompanied by 3 allies 10500 | -5/Factory | Evolved 4 slots: Propulsion x2, Utility x2 10565 | -5/Factory | Discovered new exit (range 8) 10585 | -5/Factory | Identified exit to Factory 10772 | -5/Factory | Central database locked down 10800 | -5/Factory | Search patrols dispatched 10885 | -5/Factory | Lost 3 allies 10922 | -5/Factory | Build established: Mutant 11079 | -5/Factory | Discovered new exit (range 10) 11100 | -5/Factory | Search patrols dispatched 11100 | -5/Factory | Identified exit to Upper Caves 11112 | -5/Factory | Entered Upper Caves 11124 | -5/Upper Caves | Met a Warlord Commander 11125 | -5/Upper Caves | Learned location of Warlord (-4) 11126 | -5/Upper Caves | Warlord Commander delivered Encrypted Comm Array 11127 | -5/Upper Caves | Found Encrypted Comm Array 11299 | -5/Upper Caves | Build established: Scavenger-Mutant 11392 | -5/Upper Caves | Spotted B-75 Beast 11698 | -5/Upper Caves | Attracted the attention of an 0b10 checkpoint 11740 | -5/Upper Caves | Lost 3 parts (2n1u) 13305 | -5/Upper Caves | Discovered new exit (range 13) 13348 | -5/Upper Caves | Build established: Trapper-Mutant 13351 | -5/Upper Caves | Identified exit to Upper Caves 13413 | -5/Upper Caves | Entered another Upper Caves area 13414 | -5/Upper Caves | Latent Energy Streamer stolen by Master Thief 13415 | -5/Upper Caves | Encountered a Master Thief 13415 | -5/Upper Caves | Encountered a Master Thief 13424 | -5/Upper Caves | Dispersion Rifle stolen by Master Thief 13472 | -5/Upper Caves | Discovered exit to Factory (range 5) 14062 | -5/Upper Caves | Discovered new exit (range 10) 14073 | -5/Upper Caves | Ambushed by wild Derelicts 14077 | -5/Upper Caves | Entered Zhirov 14077 | -5/Zhirov | Discovered new exit (range 3) 14107 | -5/Zhirov | Met Zhirov 14137 | -5/Zhirov | Learned location of Quarantine (-3) 14137 | -5/Zhirov | Learned location of Testing (-2) 14137 | -5/Zhirov | Learned location of Command (-1) 14177 | -5/Zhirov | Zhirov requested help retrieving the SGEMP Prototype 14204 | -5/Zhirov | Found Alien Artifact 14225 | -5/Zhirov | Found Alien Artifact 14225 | -5/Zhirov | Identified Integrated Reactor 14225 | -5/Zhirov | Installed Integrated Reactor, increased core energy generation (+10) 14510 | -5/Zhirov | Entered Proximity Caves 14511 | -4/Proximity Caves | Greeted by an Infiltrator in a former 0b10 base 14608 | -4/Proximity Caves | Former 0b10 base attacked by MAIN.C 14627 | -4/Proximity Caves | Spotter reported a threat 14718 | -4/Proximity Caves | Spotter reported a threat 14892 | -4/Proximity Caves | Lost 3 allies 14910 | -4/Proximity Caves | 0b10 base defense nominally successful 14926 | -4/Proximity Caves | Core integrity fell below 50% 14968 | -4/Proximity Caves | Lost 7 parts (5n2w) 14984 | -4/Proximity Caves | Lost 11 allies 15051 | -4/Proximity Caves | Repaired Adv. Myomer Leg 15170 | -4/Proximity Caves | Spotted B-86 Titan 15298 | -4/Proximity Caves | Build established: Hacker-Mutant 15319 | -4/Proximity Caves | Repaired Corrupted Biometal Leg 15992 | -4/Proximity Caves | Lost 4 allies 16131 | -4/Proximity Caves | Build established: Trapper-Mutant 16174 | -4/Proximity Caves | Attracted the attention of an 0b10 checkpoint 16330 | -4/Proximity Caves | Lost 5 parts (1p1n2u1w) 16712 | -4/Proximity Caves | Entered Factory 16712 | -4/Factory | Evolved 2 slots: Power x1, Weapon x1 16713 | -4/Factory | Identified exit to Upper Caves 16839 | -4/Factory | Fabricated Exp. Optical Array (x1) 16962 | -4/Factory | Search patrols dispatched 17074 | -4/Factory | Build established: Trapper-Gunner 17162 | -4/Factory | Discovered new exit (range 19) 17236 | -4/Factory | Sucked down chute 17236 | -4/Factory | Entered Waste 17251 | -4/Waste | EMP discharged 17251 | -4/Waste | System corruption reached 10% 17286 | -4/Waste | Spotted C-40 Crusher 17300 | -4/Waste | Crushed by Compactor (0 parts destroyed, 2 dropped) 17309 | -4/Waste | Spotted C-40 Crusher 17318 | -4/Waste | Spotted C-40 Crusher 17322 | -4/Waste | Crushed by Compactor (1 part destroyed, 1 dropped) 17327 | -4/Waste | Spotted C-40 Crusher 17337 | -4/Waste | Discovered new exit (range 22) 17345 | -4/Waste | Spotted C-40 Crusher 17351 | -4/Waste | EMP discharged 17361 | -4/Waste | Entered Factory 17625 | -4/Factory | Build established: Trapper-Mutant 18207 | -4/Factory | Lost 9 parts (2p3n1u3w) 18312 | -4/Factory | Core integrity fell below 50% 18416 | -4/Factory | Destroyed 8 combat bots 18434 | -4/Factory | Lost 17 parts (4p7n2u4w) 18465 | -4/Factory | Identified exit to Extension 18465 | -4/Factory | Identified exit to Armory 18465 | -4/Factory | Watched by a mysterious "MATRIX" hacker 18498 | -4/Factory | Build established: Trapper-Gunner 18510 | -4/Factory | Identified Transdimensional Reconstructor 18510 | -4/Factory | Warped through subspace 18510 | -4/Factory | Spotted B-86 Titan 18519 | -4/Factory | Lost 3 allies 18531 | -4/Factory | Core integrity fell below 20% 18601 | -4/Factory | Lost 14 parts (1p6n4u3w) 18604 | -4/Factory | Destroyed by H-77 Assassin with Coil Gun Last Messages --------------- 18575_ U-05 Engineer lays Concrete. 18575_ G-67 Veteran IFF system glitched. 18576_ A-15 Conveyor heat damages Imp. Ion Engine. 18576_ U-05 Engineer lays Concrete. 18577_ Penetrated by Slug. 18577_ U-05 Engineer lays Concrete. 18578_ Slug penetrates Wall. 18578_ U-05 Engineer lays Concrete. 18579_ R-10 Processor collects Corrupted Flexi-carbon Leg. 18579_ U-05 Engineer lays Concrete. 18583_ ALERT: Suspicious intruders detected, dispatching Cutter reinforcements to area. 18597_ ALERT: Security rotation in progress. 18600_ System corrupted: IFF burst signal emitted. 18603_ Slug penetrates Wall. 18604_ Penetrated by Slug. 18604_ Exp. Core Shielding destroyed. Map ----- +----------------------------------------------------+ | ?????????????????????????????????????????????????? | | ?????????????????????????????????????????????????? | | ?????????????????????????????????????????????????? | | ?????????????????????????????????????????????????? | | ?????????????????????????????????????????????????? | | ?????????????????????????????????????????????????? | | ?????????????????????????????????????????????????? | | ?????????????????????????????????????????????????? | | ?????????????????????????????????????????????????? | | ?????????????????????????????????????????????????? | | ?????????????????????????????????????????????????? | | ?????????????????????????????????????????????????? | | ?????????????????????????????????????????????????? | | ?????????????????????????????????????????????????? | | ?????????????????????????????????????????????????? | | ?????????????????????????????????????????????????? | | ?????????????????????????????????????????????????? | | ?????????????????????????????????????????????????? | | ?????????????????????????????????????????????????? | | ?????????????????????????????????????????????????? | | ?????????????????????????????????????????????????? | | ?????????????##############??????????????????????? | | ?????????????# #??????????????????????? | | ?????????????# #??????????????????????? | | ?????????????# """"""" #######????????????????? | | ?????????????# """""""@; #??????????####??? | | ?????????????# """"""" # #?????????? ?? | | ?????????????# """"""" + #?????????? "" | | ?????????????# # #????????? "" | | ?????????????# """"""" # #?????????? "" | | ?????????????# ! """"""" # #?????????? | | ?????????????# """"""" # ########??? | | ?????????????# """"""" # #??? ! | | ?????????????# # #???? = | | ?????????????############## #???? """ | | ???????????????????????# "" #????"""" | | ???????????????????????#""" #??????"" | | ???????????????????????#"T #???????? | | ???????????????????????#""" "" "" ########### | | ???????????????????????# "" """ """ %% | | ???????????????????????#### " """ ^ % | | ??????????????????????????# "" | | ??????????????????????????# " ^ | | ??????????????????????????# ^ | | ??????????????????????????# ###+####### | | ??????????????????????????# #??? ?????? | | ??????????????????????????# #?????????? | | ????????????????????????###= #?????????? | | ????????????????????????# "= #?????????? | | ????????????????????????# " %! % #?????????? | +----------------------------------------------------+ Best States ------------- Heat Dissipation 97 Coolant Potential 50 Energy Generation 51 Energy Capacity 500 Matter Stores 300 Matter Capacity 300 Sight Range 23 Robot Scan Range 15 Terrain Scan Range 14 Terrain Scan Density 110 Jamming Range 12 Armor Coverage 600 Resistance: KI 20 Core Shielding 40 Evasion (%) 67 Targeting Accuracy 16 Target Analysis 8 Recoil Reduction 4 Energy Filtering 30 Offensive Hacking 45 Defensive Hacking 12 Authchip Count 1 Trap Extractor Capacity 8 Item Schematics ----------------- Lrg. Storage Unit | -10/Materials | Hacked Cryofiber Web | -8/Materials | Hacked Adv. Salvage Targeting Computer | -7/Storage | Hacked Assault Drone Bay | -5/Zhirov | Free Exp. Heat Sink | -5/Zhirov | Free Exp. Optical Array | -5/Zhirov | Free Imp. Arc Thrower | -5/Zhirov | Free Robot Schematics ------------------ None Fabricated ------------ Exp. Optical Array | x1 | -4/Factory | Authchip Repaired ---------- Adv. Beam Cannon | 56% | -9/Materials Imp. Heat Sink | 20% | -9/Materials Imp. Aluminum Leg | 10% | -9/Materials Lgt. Armored Exoskeleton | 15% | -7/Storage | Broken Adv. Myomer Leg | 47% | -4/Proximity Caves Biometal Leg | 65% | -4/Proximity Caves | Corrupted Studied --------- Aluminum Leg | -9/Materials | Hacked Carbon-fiber Leg | -8/Materials | Hacked VSS Leg | -5/Factory | Hacked Imp. Carbon-fiber Leg | -5/Factory | Hacked Hvy. Phase Cannon | -4/Factory | Hacked Adv. VSS Leg | -4/Factory | Hacked Alien Tech Used ----------------- Integrated Reactor Transdimensional Reconstructor Achievements -------------- Consequences It Was An Accident, I Swear Challenges ------------ None Game ------ Seed ActivePlasmaArticulator Manual? 0 Play Time 03:39:03 Cumulative 125.4 hours Start 2026.09.11 @ 09:57:47 End 2026.09.14 @ 18:16:58 Sessions 13 Manual Loads 0 Difficulty Rogue Special Mode None Game No. 63 Rogue 63 Adventurer 0 Explorer 0 Win Type - Total 3 Types 2/0/0/0/1/0/0/0/0/0 Lore% 57 Gallery% 55 Achievement% 54 Wizard Run 0 Options --------- Layout 1 ASCII 0 Keyboard 0 Movement Numpad Keybinds 0 Fullscreen 1 Font 24/Smallcaps Map View 50x35 Zoom Use 0% Tactical HUD 1 Map Filters NONE Filters NONE Steam 1 RUN: 7a23a05c-499e-439c-875b-97b48ee5933a